[Event "*** SCC Grand Prix: Titled Tuesday Blitz"]
[Site "Chess.com"]
[Date "2020.06.09"]
[Round "1"]
[White "OparinGrigoriy"]
[Black "willc-h99"]
[Result "1-0"]
[WhiteElo "2902"]
[BlackElo "2445"]
[TimeControl "180+1"]
[EndTime "9:06:52 PDT"]
[Termination "OparinGrigoriy won by resignation"]

1. Nf3 {[%clk 0:03:00.9]} 1... c5 {[%clk 0:02:59.7]} 2. c4 {[%clk 0:03:01]} 2...
g6 {[%clk 0:03:00]} 3. d4 {[%clk 0:03:01]} 3... cxd4 {[%clk 0:03:00.9]} 4. Nxd4
{[%clk 0:03:01.9]} 4... Bg7 {[%clk 0:03:01.3]} 5. e4 {[%clk 0:03:02.5]} 5... Nc6
{[%clk 0:03:01.8]} 6. Nc2 {[%clk 0:03:02.6]} 6... d6 {[%clk 0:03:00.7]} 7. Be2
{[%clk 0:03:02.6]} 7... Nh6 {[%clk 0:02:58.7]} 8. O-O {[%clk 0:03:01.1]} 8...
O-O {[%clk 0:02:57.8]} 9. Nc3 {[%clk 0:03:00.7]} 9... f5 {[%clk 0:02:56.3]} 10.
Bg5 {[%clk 0:02:46.6]} 10... Nf7 {[%clk 0:02:47.5]} 11. Be3 {[%clk 0:02:41.5]}
11... e5 {[%clk 0:02:33.6]} 12. exf5 {[%clk 0:02:33.6]} 12... gxf5 {[%clk
0:02:33.1]} 13. f4 {[%clk 0:02:34]} 13... Kh8 {[%clk 0:02:28.3]} 14. Qd2 {[%clk
0:02:28.3]} 14... Qh4 {[%clk 0:02:07.9]} 15. Rad1 {[%clk 0:02:01.4]} 15... Rg8
{[%clk 0:02:05.4]} 16. g3 {[%clk 0:01:52.5]} 16... Bf6 {[%clk 0:01:46.7]} 17.
Bf3 {[%clk 0:01:52.3]} 17... Bd7 {[%clk 0:01:19.4]} 18. Bg2 {[%clk 0:01:43]}
18... Qh5 {[%clk 0:01:16.4]} 19. Nd5 {[%clk 0:01:30.8]} 19... Bd8 {[%clk
0:01:14.5]} 20. c5 {[%clk 0:01:26.4]} 20... dxc5 {[%clk 0:01:09.7]} 21. Bxc5
{[%clk 0:01:26.2]} 21... Be6 {[%clk 0:01:00.9]} 22. Nce3 {[%clk 0:01:22.6]}
22... h6 {[%clk 0:00:51.7]} 23. fxe5 {[%clk 0:01:20.4]} 23... Nfxe5 {[%clk
0:00:50.2]} 24. Nf4 {[%clk 0:01:18.7]} 24... Qf7 {[%clk 0:00:49.4]} 25. Nxe6
{[%clk 0:01:17.7]} 25... Qxe6 {[%clk 0:00:49.6]} 26. Rxf5 {[%clk 0:01:16.7]}
26... Bg5 {[%clk 0:00:48.3]} 27. Qf2 {[%clk 0:01:03.4]} 27... Bxe3 {[%clk
0:00:43.4]} 28. Bxe3 {[%clk 0:01:00.6]} 28... Ng4 {[%clk 0:00:43]} 29. Bd4+
{[%clk 0:01:00.6]} 29... Nxd4 {[%clk 0:00:31.9]} 30. Qxd4+ {[%clk 0:01:01.5]}
30... Kh7 {[%clk 0:00:32.5]} 31. Be4 {[%clk 0:00:55]} 31... Rg6 {[%clk
0:00:24.5]} 32. Rf4 {[%clk 0:00:48]} 32... Ne5 {[%clk 0:00:20.4]} 33. Bxg6+
{[%clk 0:00:45.5]} 33... Kxg6 {[%clk 0:00:21.3]} 34. Qe4+ {[%clk 0:00:44.1]}
34... Kg7 {[%clk 0:00:20.2]} 35. Rd5 {[%clk 0:00:41.4]} 35... Qb6+ {[%clk
0:00:19.8]} 36. Kg2 {[%clk 0:00:40.8]} 36... Qxb2+ {[%clk 0:00:19.8]} 37. Kh3
{[%clk 0:00:41.3]} 37... Re8 {[%clk 0:00:18.7]} 38. Qf5 {[%clk 0:00:40.4]} 38...
Re7 {[%clk 0:00:08.8]} 39. Qf6+ {[%clk 0:00:40.1]} 1-0

[Event "*** SCC Grand Prix: Titled Tuesday Blitz"]
[Site "Chess.com"]
[Date "2020.06.09"]
[Round "1"]
[White "SamuelGhimpu2003"]
[Black "Anaj14"]
[Result "1-0"]
[WhiteElo "2604"]
[BlackElo "2278"]
[TimeControl "180+1"]
[EndTime "9:06:54 PDT"]
[Termination "SamuelGhimpu2003 won by checkmate"]

1. e4 {[%clk 0:03:00.6]} 1... c5 {[%clk 0:02:59.4]} 2. Nf3 {[%clk 0:02:59.9]}
2... d6 {[%clk 0:02:59.3]} 3. d4 {[%clk 0:03:00.8]} 3... cxd4 {[%clk 0:02:59.4]}
4. Nxd4 {[%clk 0:03:01.7]} 4... e6 {[%clk 0:03:00]} 5. c4 {[%clk 0:02:59.9]}
5... Nf6 {[%clk 0:03:00.1]} 6. Nc3 {[%clk 0:02:58.4]} 6... Be7 {[%clk
0:03:00.8]} 7. Be2 {[%clk 0:02:58.1]} 7... O-O {[%clk 0:03:01.4]} 8. O-O {[%clk
0:02:58.1]} 8... a6 {[%clk 0:03:02.1]} 9. Be3 {[%clk 0:02:57.2]} 9... Qc7 {[%clk
0:03:02.3]} 10. f3 {[%clk 0:02:56]} 10... Nc6 {[%clk 0:02:58.5]} 11. Rc1 {[%clk
0:02:52.4]} 11... Nxd4 {[%clk 0:02:58.2]} 12. Qxd4 {[%clk 0:02:52.7]} 12... Nd7
{[%clk 0:02:56.3]} 13. Rfd1 {[%clk 0:02:50.3]} 13... b6 {[%clk 0:02:52.6]} 14.
f4 {[%clk 0:02:42.7]} 14... Rd8 {[%clk 0:02:46]} 15. Bf3 {[%clk 0:02:36.6]}
15... Bb7 {[%clk 0:02:46]} 16. Kh1 {[%clk 0:02:34.9]} 16... Rac8 {[%clk
0:02:33.1]} 17. b4 {[%clk 0:02:05.9]} 17... Bf6 {[%clk 0:02:23.2]} 18. Qd2
{[%clk 0:02:00.8]} 18... Be7 {[%clk 0:02:14.2]} 19. Na4 {[%clk 0:01:48.8]} 19...
Qc6 {[%clk 0:01:51.4]} 20. Nb2 {[%clk 0:01:25]} 20... e5 {[%clk 0:01:46.1]} 21.
f5 {[%clk 0:01:10.9]} 21... h6 {[%clk 0:01:38.9]} 22. g4 {[%clk 0:01:03.5]}
22... Bf8 {[%clk 0:01:34.6]} 23. g5 {[%clk 0:00:58.4]} 23... hxg5 {[%clk
0:01:34.1]} 24. Bxg5 {[%clk 0:00:59.3]} 24... f6 {[%clk 0:01:33.1]} 25. Be3
{[%clk 0:00:59.6]} 25... a5 {[%clk 0:01:30.1]} 26. b5 {[%clk 0:00:47.6]} 26...
Qc7 {[%clk 0:01:30.1]} 27. Qg2 {[%clk 0:00:45.3]} 27... Nc5 {[%clk 0:01:29.4]}
28. h4 {[%clk 0:00:43.9]} 28... Qf7 {[%clk 0:01:25.8]} 29. h5 {[%clk 0:00:23.9]}
29... Kh8 {[%clk 0:01:17.4]} 30. Rd5 {[%clk 0:00:22.5]} 30... a4 {[%clk
0:01:11.5]} 31. h6 {[%clk 0:00:19.2]} 31... gxh6 {[%clk 0:01:09.9]} 32. Rg1
{[%clk 0:00:17.6]} 32... Bxd5 {[%clk 0:01:03.1]} 33. cxd5 {[%clk 0:00:18.5]}
33... a3 {[%clk 0:01:03.2]} 34. Nc4 {[%clk 0:00:16.9]} 34... Rb8 {[%clk
0:00:59.9]} 35. Qh3 {[%clk 0:00:09.7]} 35... Be7 {[%clk 0:00:52.9]} 36. Bh5
{[%clk 0:00:08.6]} 36... Qh7 {[%clk 0:00:50.1]} 37. Bg6 {[%clk 0:00:08.5]} 37...
Qg7 {[%clk 0:00:50.5]} 38. Bxh6 {[%clk 0:00:08.4]} 38... Nxe4 {[%clk 0:00:39.5]}
39. Bxg7+ {[%clk 0:00:07.8]} 39... Kxg7 {[%clk 0:00:39.7]} 40. Qh7+ {[%clk
0:00:08.7]} 40... Kf8 {[%clk 0:00:39.7]} 41. Qf7# {[%clk 0:00:09.6]} 1-0

[Event "*** SCC Grand Prix: Titled Tuesday Blitz"]
[Site "Chess.com"]
[Date "2020.06.09"]
[Round "1"]
[White "silverback96"]
[Black "arminmusovic"]
[Result "1-0"]
[WhiteElo "2191"]
[BlackElo "2534"]
[TimeControl "180+1"]
[EndTime "9:06:55 PDT"]
[Termination "silverback96 won by resignation"]

1. d4 {[%clk 0:03:00.7]} 1... d5 {[%clk 0:02:59.1]} 2. c4 {[%clk 0:03:01.1]}
2... c5 {[%clk 0:02:59.2]} 3. cxd5 {[%clk 0:02:56.4]} 3... Qxd5 {[%clk
0:02:58.4]} 4. Nf3 {[%clk 0:02:55]} 4... cxd4 {[%clk 0:02:58.7]} 5. Nc3 {[%clk
0:02:55.4]} 5... Qa5 {[%clk 0:02:58.9]} 6. Nxd4 {[%clk 0:02:54.9]} 6... Nf6
{[%clk 0:02:59.2]} 7. Bd2 {[%clk 0:02:38.4]} 7... Qd8 {[%clk 0:02:58.1]} 8. Bg5
{[%clk 0:02:35]} 8... e5 {[%clk 0:02:41.4]} 9. Ndb5 {[%clk 0:02:34.7]} 9...
Qxd1+ {[%clk 0:02:33.5]} 10. Rxd1 {[%clk 0:02:35.6]} 10... Na6 {[%clk
0:02:33.2]} 11. Bxf6 {[%clk 0:02:30.6]} 11... gxf6 {[%clk 0:02:31]} 12. Nd5
{[%clk 0:02:31]} 12... Rb8 {[%clk 0:02:06.7]} 13. Nxf6+ {[%clk 0:02:30]} 13...
Ke7 {[%clk 0:02:07.1]} 14. Nd5+ {[%clk 0:02:30.1]} 14... Ke6 {[%clk 0:02:05.8]}
15. Nbc7+ {[%clk 0:02:24.6]} 15... Nxc7 {[%clk 0:02:01.8]} 16. Nxc7+ {[%clk
0:02:25.5]} 16... Kf6 {[%clk 0:02:01.1]} 17. Nd5+ {[%clk 0:02:23.3]} 17... Kg7
{[%clk 0:02:01.3]} 18. e4 {[%clk 0:02:23.5]} 18... Be6 {[%clk 0:01:54.6]} 19.
Bc4 {[%clk 0:02:16.7]} 19... b5 {[%clk 0:01:31.3]} 20. Bb3 {[%clk 0:02:16.4]}
20... a5 {[%clk 0:01:31.6]} 21. O-O {[%clk 0:02:05.1]} 21... Bc5 {[%clk
0:01:30]} 22. Rd3 {[%clk 0:01:54.7]} 22... Bd4 {[%clk 0:01:26.5]} 23. Rg3+
{[%clk 0:01:54.3]} 23... Kf8 {[%clk 0:01:24.5]} 24. Rc1 {[%clk 0:01:34.9]} 24...
Rg8 {[%clk 0:01:12]} 25. Nc7 {[%clk 0:01:22.3]} 25... Ke7 {[%clk 0:00:59.7]} 26.
Rxg8 {[%clk 0:01:17.1]} 26... Rxg8 {[%clk 0:00:58.7]} 27. Bxe6 {[%clk
0:01:17.3]} 27... fxe6 {[%clk 0:00:56.9]} 28. Nxb5 {[%clk 0:01:17.5]} 28... Bxb2
{[%clk 0:00:56.2]} 29. Rc7+ {[%clk 0:01:16.8]} 29... Kf6 {[%clk 0:00:56.7]} 30.
Rxh7 {[%clk 0:01:05.6]} 30... Rc8 {[%clk 0:00:46.6]} 31. h4 {[%clk 0:01:03.7]}
31... Rc1+ {[%clk 0:00:44.2]} 32. Kh2 {[%clk 0:01:02.8]} 32... Rc2 {[%clk
0:00:45.1]} 33. f3 {[%clk 0:00:49.2]} 33... Bc1 {[%clk 0:00:42.4]} 34. a4 {[%clk
0:00:46.1]} 34... Ra2 {[%clk 0:00:33.4]} 35. Kh3 {[%clk 0:00:45]} 35... Rxa4
{[%clk 0:00:32.4]} 36. Nd6 {[%clk 0:00:43.7]} 36... Rd4 {[%clk 0:00:21.7]} 37.
Ne8+ {[%clk 0:00:43.4]} 37... Kg6 {[%clk 0:00:21.7]} 38. Rg7+ {[%clk 0:00:37.4]}
38... Kh6 {[%clk 0:00:22]} 39. g4 {[%clk 0:00:34.7]} 39... Rd8 {[%clk
0:00:19.9]} 40. g5+ {[%clk 0:00:35.2]} 1-0

[Event "*** SCC Grand Prix: Titled Tuesday Blitz"]
[Site "Chess.com"]
[Date "2020.06.09"]
[Round "1"]
[White "Chess_Boxer123"]
[Black "killer311"]
[Result "1-0"]
[WhiteElo "2739"]
[BlackElo "2385"]
[TimeControl "180+1"]
[EndTime "9:06:57 PDT"]
[Termination "Chess_Boxer123 won by resignation"]

1. e4 {[%clk 0:02:58.1]} 1... c6 {[%clk 0:03:00.3]} 2. Nf3 {[%clk 0:02:56.8]}
2... d5 {[%clk 0:03:01.2]} 3. Nc3 {[%clk 0:02:56.6]} 3... dxe4 {[%clk
0:03:01.5]} 4. Nxe4 {[%clk 0:02:57.5]} 4... Nf6 {[%clk 0:03:01.7]} 5. Qe2 {[%clk
0:02:57.8]} 5... Nxe4 {[%clk 0:03:00.6]} 6. Qxe4 {[%clk 0:02:57.9]} 6... Qa5
{[%clk 0:03:01.5]} 7. Qf4 {[%clk 0:02:54.3]} 7... Bf5 {[%clk 0:03:01.3]} 8. b4
{[%clk 0:02:47.2]} 8... Qd5 {[%clk 0:02:50.8]} 9. Bc4 {[%clk 0:02:27.5]} 9...
Qe4+ {[%clk 0:02:20.9]} 10. Qxe4 {[%clk 0:02:26.8]} 10... Bxe4 {[%clk
0:02:21.8]} 11. Bxf7+ {[%clk 0:02:27.6]} 11... Kxf7 {[%clk 0:02:22.4]} 12. Ng5+
{[%clk 0:02:27.9]} 12... Kg6 {[%clk 0:02:22.8]} 13. Nxe4 {[%clk 0:02:28.8]}
13... e5 {[%clk 0:02:23.1]} 14. a3 {[%clk 0:02:24.5]} 14... Be7 {[%clk
0:02:19.9]} 15. Bb2 {[%clk 0:02:24.2]} 15... a5 {[%clk 0:02:16.8]} 16. O-O
{[%clk 0:02:06.5]} 16... Nd7 {[%clk 0:02:10.7]} 17. c3 {[%clk 0:01:35.9]} 17...
Nf6 {[%clk 0:02:04.8]} 18. Nxf6 {[%clk 0:01:32.2]} 18... gxf6 {[%clk 0:02:05.7]}
19. d3 {[%clk 0:01:28.7]} 19... Rhd8 {[%clk 0:02:05.1]} 20. Rfd1 {[%clk
0:01:28.7]} 20... Rd7 {[%clk 0:02:03.3]} 21. Kf1 {[%clk 0:01:28.9]} 21... a4
{[%clk 0:01:50.8]} 22. c4 {[%clk 0:01:27.5]} 22... Rad8 {[%clk 0:01:46.8]} 23.
Ke2 {[%clk 0:01:27]} 23... b5 {[%clk 0:01:47.3]} 24. f3 {[%clk 0:01:25.1]} 24...
Kf5 {[%clk 0:01:42.3]} 25. g4+ {[%clk 0:01:21.7]} 25... Ke6 {[%clk 0:01:41.3]}
26. Rac1 {[%clk 0:01:07.2]} 26... Kf7 {[%clk 0:01:18.9]} 27. cxb5 {[%clk
0:01:04.8]} 27... cxb5 {[%clk 0:01:19.8]} 28. Rc6 {[%clk 0:01:05.4]} 28... Rd5
{[%clk 0:01:18]} 29. Ke3 {[%clk 0:01:00.4]} 29... R8d7 {[%clk 0:01:14.3]} 30.
Ke4 {[%clk 0:00:50.3]} 30... Bf8 {[%clk 0:01:13.8]} 31. d4 {[%clk 0:00:38.6]}
31... Bh6 {[%clk 0:01:07.1]} 32. Rc7 {[%clk 0:00:21.8]} 32... Rxc7 {[%clk
0:01:01.5]} 33. Kxd5 {[%clk 0:00:21.7]} 33... Rc2 {[%clk 0:01:02.1]} 34. Rb1
{[%clk 0:00:21.4]} 34... exd4 {[%clk 0:00:59.8]} 35. Bxd4 {[%clk 0:00:21.3]}
35... Rxh2 {[%clk 0:00:57.1]} 36. Kc5 {[%clk 0:00:19.7]} 36... Ra2 {[%clk
0:00:56]} 37. Bb2 {[%clk 0:00:19.5]} 37... Bf4 {[%clk 0:00:51.2]} 38. Kxb5
{[%clk 0:00:19.4]} 38... Ke6 {[%clk 0:00:46.8]} 39. Kxa4 {[%clk 0:00:19.3]}
39... Kd6 {[%clk 0:00:47.2]} 40. Kb3 {[%clk 0:00:19.5]} 1-0

[Event "*** SCC Grand Prix: Titled Tuesday Blitz"]
[Site "Chess.com"]
[Date "2020.06.09"]
[Round "1"]
[White "Makswolf200817"]
[Black "LittlePeasant"]
[Result "0-1"]
[WhiteElo "2423"]
[BlackElo "2806"]
[TimeControl "180+1"]
[EndTime "9:06:59 PDT"]
[Termination "LittlePeasant won by resignation"]

1. Nf3 {[%clk 0:03:00.9]} 1... d5 {[%clk 0:02:54.5]} 2. e3 {[%clk 0:03:00.6]}
2... g6 {[%clk 0:02:54.3]} 3. c4 {[%clk 0:03:00.2]} 3... Nf6 {[%clk 0:02:53.3]}
4. b3 {[%clk 0:02:51.3]} 4... c5 {[%clk 0:02:50.1]} 5. cxd5 {[%clk 0:02:48.5]}
5... Qxd5 {[%clk 0:02:48.5]} 6. Bb2 {[%clk 0:02:47.8]} 6... Qf5 {[%clk
0:02:47.8]} 7. Be2 {[%clk 0:02:44.8]} 7... Bg7 {[%clk 0:02:47.8]} 8. O-O {[%clk
0:02:44.5]} 8... O-O {[%clk 0:02:47.4]} 9. d3 {[%clk 0:02:41.6]} 9... Rd8 {[%clk
0:02:46.7]} 10. a3 {[%clk 0:02:38.5]} 10... Nc6 {[%clk 0:02:46.4]} 11. Qc2
{[%clk 0:02:36.3]} 11... b6 {[%clk 0:02:43.4]} 12. Nbd2 {[%clk 0:02:32.2]} 12...
Bb7 {[%clk 0:02:33.3]} 13. Rac1 {[%clk 0:02:30.1]} 13... Rac8 {[%clk 0:02:31.2]}
14. Qb1 {[%clk 0:02:27.3]} 14... Ng4 {[%clk 0:02:19.5]} 15. Bxg7 {[%clk
0:02:21.4]} 15... Kxg7 {[%clk 0:02:18.6]} 16. Ne4 {[%clk 0:02:04.2]} 16... Nge5
{[%clk 0:02:08.7]} 17. Rfd1 {[%clk 0:01:56.1]} 17... Nxf3+ {[%clk 0:02:02.3]}
18. Bxf3 {[%clk 0:01:55.8]} 18... Ne5 {[%clk 0:02:02.9]} 19. Be2 {[%clk
0:01:54.3]} 19... Ba6 {[%clk 0:01:53]} 20. Ng3 {[%clk 0:01:50.4]} 20... Qe6
{[%clk 0:01:49.9]} 21. Qb2 {[%clk 0:01:46.2]} 21... f6 {[%clk 0:01:48.2]} 22. d4
{[%clk 0:01:41.8]} 22... Bxe2 {[%clk 0:01:39.6]} 23. Qxe2 {[%clk 0:01:40.9]}
23... cxd4 {[%clk 0:01:17.7]} 24. Rxc8 {[%clk 0:01:33.1]} 24... Qxc8 {[%clk
0:01:14.5]} 25. exd4 {[%clk 0:01:31]} 25... Nc6 {[%clk 0:01:05.2]} 26. d5 {[%clk
0:01:25.2]} 26... Ne5 {[%clk 0:01:05]} 27. h4 {[%clk 0:01:10.6]} 27... Qc5
{[%clk 0:01:04.3]} 28. b4 {[%clk 0:01:08.8]} 28... Qc4 {[%clk 0:01:03.8]} 29.
Qd2 {[%clk 0:01:01.5]} 29... Qxh4 {[%clk 0:01:00.1]} 30. Rc1 {[%clk 0:00:55.5]}
30... Rd7 {[%clk 0:00:47.9]} 31. Rc8 {[%clk 0:00:51.3]} 31... b5 {[%clk
0:00:38.4]} 32. Rc5 {[%clk 0:00:46.7]} 32... a6 {[%clk 0:00:38.1]} 33. Rc8
{[%clk 0:00:46.5]} 33... Nc4 {[%clk 0:00:37.3]} 34. Qd3 {[%clk 0:00:43.2]} 34...
Qf4 {[%clk 0:00:33.8]} 35. Kh2 {[%clk 0:00:36.9]} 35... Qe5 {[%clk 0:00:32.5]}
36. Rc5 {[%clk 0:00:35.5]} 36... e6 {[%clk 0:00:28.1]} 37. Rc6 {[%clk
0:00:32.4]} 37... Qxd5 {[%clk 0:00:24.6]} 38. Qxd5 {[%clk 0:00:32.7]} 38... exd5
{[%clk 0:00:24.7]} 39. Rxa6 {[%clk 0:00:33.6]} 39... d4 {[%clk 0:00:24.7]} 40.
Ne4 {[%clk 0:00:29]} 40... d3 {[%clk 0:00:24]} 41. Nc3 {[%clk 0:00:29.5]} 41...
d2 {[%clk 0:00:22.8]} 42. Nd1 {[%clk 0:00:29.9]} 42... Re7 {[%clk 0:00:23]} 43.
Kg3 {[%clk 0:00:20.4]} 43... Re1 {[%clk 0:00:23]} 44. Nc3 {[%clk 0:00:21.3]}
44... Rc1 {[%clk 0:00:22.6]} 45. Ne2 {[%clk 0:00:20.2]} 0-1

[Event "*** SCC Grand Prix: Titled Tuesday Blitz"]
[Site "Chess.com"]
[Date "2020.06.09"]
[Round "1"]
[White "Joshukid"]
[Black "TrickyFortem"]
[Result "1-0"]
[WhiteElo "2717"]
[BlackElo "2375"]
[TimeControl "180+1"]
[EndTime "9:06:59 PDT"]
[Termination "Joshukid won by resignation"]

1. Nf3 {[%clk 0:02:54.9]} 1... Nf6 {[%clk 0:02:57.7]} 2. c4 {[%clk 0:02:55]}
2... e6 {[%clk 0:02:56.8]} 3. g3 {[%clk 0:02:54.8]} 3... d5 {[%clk 0:02:55.5]}
4. Bg2 {[%clk 0:02:54.8]} 4... dxc4 {[%clk 0:02:54.5]} 5. Qa4+ {[%clk
0:02:53.8]} 5... Bd7 {[%clk 0:02:54.4]} 6. Qxc4 {[%clk 0:02:53.2]} 6... Nc6
{[%clk 0:02:50.4]} 7. O-O {[%clk 0:02:52.3]} 7... Be7 {[%clk 0:02:49.6]} 8. Qb3
{[%clk 0:02:43.7]} 8... Rb8 {[%clk 0:02:48.2]} 9. Nc3 {[%clk 0:02:43.6]} 9...
O-O {[%clk 0:02:47.8]} 10. d4 {[%clk 0:02:43.4]} 10... a6 {[%clk 0:02:46.7]} 11.
Rd1 {[%clk 0:02:35.1]} 11... Nb4 {[%clk 0:02:40.4]} 12. e4 {[%clk 0:02:24.6]}
12... Qc8 {[%clk 0:02:36.1]} 13. a3 {[%clk 0:02:18.3]} 13... Nc6 {[%clk
0:02:36.1]} 14. Qc2 {[%clk 0:02:06.4]} 14... h6 {[%clk 0:02:23.6]} 15. Bf4
{[%clk 0:01:59.8]} 15... b5 {[%clk 0:02:11.2]} 16. b4 {[%clk 0:01:48.5]} 16...
Rb7 {[%clk 0:02:01.9]} 17. d5 {[%clk 0:01:40.6]} 17... exd5 {[%clk 0:01:56.8]}
18. exd5 {[%clk 0:01:41.5]} 18... Nd8 {[%clk 0:01:39.5]} 19. Nd4 {[%clk
0:01:28.4]} 19... Bd6 {[%clk 0:01:36.3]} 20. Be3 {[%clk 0:01:23.9]} 20... Re8
{[%clk 0:01:28.4]} 21. Nc6 {[%clk 0:01:18.2]} 21... Bxc6 {[%clk 0:01:24]} 22.
dxc6 {[%clk 0:01:19.1]} 22... Rb8 {[%clk 0:01:23.7]} 23. Bd4 {[%clk 0:01:05]}
23... Be5 {[%clk 0:01:02.2]} 24. Bc5 {[%clk 0:00:36.5]} 24... Ne6 {[%clk
0:00:54.7]} 25. Ba7 {[%clk 0:00:36.1]} 25... Ra8 {[%clk 0:00:54.1]} 26. Be3
{[%clk 0:00:37]} 26... Ng4 {[%clk 0:00:51.9]} 27. Rac1 {[%clk 0:00:31.6]} 27...
Nxe3 {[%clk 0:00:51.3]} 28. fxe3 {[%clk 0:00:32.5]} 28... Ng5 {[%clk 0:00:44.7]}
29. Rd7 {[%clk 0:00:27.3]} 29... Bd6 {[%clk 0:00:29.5]} 30. Nd5 {[%clk
0:00:24.9]} 30... Rb8 {[%clk 0:00:17.9]} 31. Qf5 {[%clk 0:00:23.1]} 31... Rf8
{[%clk 0:00:15]} 32. Rf1 {[%clk 0:00:20.2]} 32... a5 {[%clk 0:00:13.6]} 33. Qd3
{[%clk 0:00:17.3]} 33... axb4 {[%clk 0:00:13.6]} 34. Rxd6 {[%clk 0:00:17.7]}
34... cxd6 {[%clk 0:00:13.6]} 35. Ne7+ {[%clk 0:00:18.2]} 35... Kh8 {[%clk
0:00:12.9]} 36. Nxc8 {[%clk 0:00:18.6]} 1-0

[Event "*** SCC Grand Prix: Titled Tuesday Blitz"]
[Site "Chess.com"]
[Date "2020.06.09"]
[Round "1"]
[White "isla88"]
[Black "Karateloru"]
[Result "0-1"]
[WhiteElo "2286"]
[BlackElo "2609"]
[TimeControl "180+1"]
[EndTime "9:06:59 PDT"]
[Termination "Karateloru won by resignation"]

1. Nf3 {[%clk 0:02:59.3]} 1... c5 {[%clk 0:02:59]} 2. b3 {[%clk 0:02:58]} 2...
Nf6 {[%clk 0:02:59.4]} 3. Bb2 {[%clk 0:02:58]} 3... e6 {[%clk 0:02:59.9]} 4. g3
{[%clk 0:02:57]} 4... Nc6 {[%clk 0:02:59.7]} 5. Bg2 {[%clk 0:02:57]} 5... b6
{[%clk 0:03:00.3]} 6. d3 {[%clk 0:02:55.9]} 6... Bb7 {[%clk 0:03:00.5]} 7. Nbd2
{[%clk 0:02:56.5]} 7... d5 {[%clk 0:03:00.5]} 8. O-O {[%clk 0:02:55.8]} 8... Be7
{[%clk 0:02:59.7]} 9. e4 {[%clk 0:02:55.3]} 9... d4 {[%clk 0:02:59.4]} 10. e5
{[%clk 0:02:51.9]} 10... Nd7 {[%clk 0:02:59]} 11. Re1 {[%clk 0:02:51.2]} 11...
Qc7 {[%clk 0:02:58.1]} 12. Qe2 {[%clk 0:02:49.9]} 12... O-O {[%clk 0:02:57.5]}
13. c3 {[%clk 0:02:42.9]} 13... dxc3 {[%clk 0:02:55.5]} 14. Bxc3 {[%clk
0:02:43.8]} 14... Rad8 {[%clk 0:02:53.6]} 15. Rac1 {[%clk 0:02:43.2]} 15... Ba6
{[%clk 0:02:53]} 16. Qe4 {[%clk 0:02:37.5]} 16... Bb7 {[%clk 0:02:47.1]} 17. Qe3
{[%clk 0:02:35.2]} 17... Qb8 {[%clk 0:02:42.5]} 18. Nc4 {[%clk 0:02:32]} 18...
Rfe8 {[%clk 0:02:39.6]} 19. h4 {[%clk 0:02:29.5]} 19... Nf8 {[%clk 0:02:37.4]}
20. h5 {[%clk 0:02:26.3]} 20... h6 {[%clk 0:02:36.8]} 21. g4 {[%clk 0:02:24.5]}
21... Nh7 {[%clk 0:02:32.7]} 22. Nfd2 {[%clk 0:01:23.6]} 22... Nd4 {[%clk
0:02:28.2]} 23. Bxb7 {[%clk 0:01:20.2]} 23... Qxb7 {[%clk 0:02:29.1]} 24. Ne4
{[%clk 0:01:19.8]} 24... Ng5 {[%clk 0:02:24.3]} 25. Bxd4 {[%clk 0:01:16.6]}
25... Rxd4 {[%clk 0:02:19.5]} 26. f4 {[%clk 0:00:33.5]} 26... Nxe4 {[%clk
0:02:05.9]} 27. dxe4 {[%clk 0:00:34.4]} 27... Red8 {[%clk 0:02:06.5]} 28. g5
{[%clk 0:00:16.9]} 28... Rd3 {[%clk 0:02:04.5]} 29. Qf2 {[%clk 0:00:16.8]} 29...
b5 {[%clk 0:02:04.5]} 30. Nd6 {[%clk 0:00:15.7]} 30... Bxd6 {[%clk 0:02:04.1]}
31. exd6 {[%clk 0:00:16.6]} 31... R8xd6 {[%clk 0:02:03.1]} 32. g6 {[%clk
0:00:16.2]} 32... c4 {[%clk 0:01:37.9]} 33. bxc4 {[%clk 0:00:15.1]} 33... b4
{[%clk 0:01:38.3]} 34. c5 {[%clk 0:00:15]} 34... Rc6 {[%clk 0:01:35.4]} 35. Red1
{[%clk 0:00:14.3]} 35... Qd7 {[%clk 0:01:34.7]} 36. Qe2 {[%clk 0:00:11.3]} 36...
Rxd1+ {[%clk 0:01:31.8]} 37. Rxd1 {[%clk 0:00:12.2]} 37... Qe8 {[%clk 0:01:32]}
38. Qb5 {[%clk 0:00:12]} 38... fxg6 {[%clk 0:01:30.3]} 39. hxg6 {[%clk
0:00:09.1]} 39... Qxg6+ {[%clk 0:01:30.3]} 40. Kf2 {[%clk 0:00:09.8]} 40... Qxe4
{[%clk 0:01:29.2]} 41. Rd8+ {[%clk 0:00:08.7]} 41... Kh7 {[%clk 0:01:28.9]} 42.
Qb8 {[%clk 0:00:08.7]} 42... Qc2+ {[%clk 0:01:25.2]} 43. Kf3 {[%clk 0:00:09.1]}
43... Qc3+ {[%clk 0:01:23.6]} 44. Kg4 {[%clk 0:00:09.3]} 44... h5+ {[%clk
0:01:20.2]} 45. Kh4 {[%clk 0:00:07]} 45... Qf6+ {[%clk 0:01:18.9]} 46. Kh3
{[%clk 0:00:06.6]} 46... Rxc5 {[%clk 0:01:14.2]} 47. Rh8+ {[%clk 0:00:05.8]}
47... Kg6 {[%clk 0:01:14.5]} 48. Qe8+ {[%clk 0:00:05.9]} 48... Qf7 {[%clk
0:01:14.5]} 49. f5+ {[%clk 0:00:06.3]} 49... Rxf5 {[%clk 0:01:13.6]} 50. Qc6
{[%clk 0:00:05.1]} 50... Rf3+ {[%clk 0:01:13.3]} 51. Kh2 {[%clk 0:00:04.5]}
51... Rf2+ {[%clk 0:01:13.3]} 52. Kg3 {[%clk 0:00:04.6]} 52... Qf4+ {[%clk
0:01:12.5]} 0-1